[Event "1000 GM Labor Day Super Swiss 2024"]
[Site "San Jose"]
[Date "2024.09.04"]
[Round "9.12"]
[White "Gui, Suyuan"]
[Black "Chinni, Rishabh"]
[Result "1/2-1/2"]
[Annotator "TA"]
[ECO "C26"]
[WhiteElo "2033"]
[BlackElo "2220"]
[PlyCount "152"]
[EventDate "2024.08.30"]
[EventType "swiss"]
[EventCountry "USA"]
[SourceTitle "playchess.com"]
[Source "ChessBase"]
[SourceQuality "1"]
[TimeControl "5400+30"]

{[%evp 58,152,113,108,92,53,56,64,70,63,92,27,25,1,10,-101,685,0,0,-24,-10,-12,-14,-23,0,-3,0,0,12,0,0,0,0,-16,-5,-6,-9,-75,-65,-94,-79,-95,-87,-87,-94,-89,-76,-144,-146,-142,-149,-193,-196,-197,-166,-203,-178,-435,-191,-540,0,-518,-517,-492,-454,-433,0,-485,0,-433,-8,-464,-462,-413,-276,-235,0,-410,0,-250,-65,-65,-65,-65,0,0,0,0,0,0,0,0,0,0,0,0,0]} 1. e4 {[%emt 0:00:13]} e5 {[%emt 0:00:12]} 2. Nf3 {[%emt 0:00:16]} Nc6 {[%emt 0:00:05]} 3. Nc3 {[%emt 0:00:03]} Nf6 {[%emt 0:00:09]} 4. g3 {[%emt 0:00:20]} Bc5 {[%emt 0:01:24]} 5. Bg2 {[%emt 0:00:05]} O-O {[%emt 0:00:20]} 6. O-O {[%emt 0:00:08]} a6 {[%emt 0:02:19]} 7. d3 {[%emt 0:00:12]} h6 {[%emt 0:00:21]} 8. h3 {[%emt 0:00:19]} d6 {[%emt 0:00:11]} 9. Kh2 {[%emt 0:00:09] C26: Vienna Game: 2...Nf6, sidelines .} Ne7 {[%emt 0:01:09]} 10. d4 {[%emt 0:09:23]} exd4 {[%emt 0:01:10]} 11. Nxd4 {[%emt 0:00:15]} Ng6 {[%emt 0:08:31]} 12. b3 $146 {[%emt 0:07:29]} ({Predecessor:} 12. f4 Re8 13. a3 Qd7 14. Qd3 Rb8 15. b3 b5 16. Bb2 Bb7 17. Rae1 Re7 18. Nf5 {1-0 Schweizer,S (2140)-Wellbourne Wood,J (1595) Basel Carnival op 2024 (1)}) 12... Re8 {[%emt 0:03:25]} 13. Bb2 {[%emt 0:01:37]} Bb4 {[%emt 0:15:36]} 14. Nd5 {[%emt 0:03:34]} Nxd5 {[%emt 0:00:52]} 15. exd5 {[%emt 0:00:07]} Qf6 {[%emt 0:04:06]} 16. Rb1 {[%emt 0:04:12]} Qe7 {[%emt 0:05:16]} 17. c3 {[%emt 0:08:49]} Bc5 {[%emt 0:00:17]} 18. Qd2 {[%emt 0:01:12]} Bd7 {[%emt 0:02:59]} 19. c4 {[%emt 0:04:36]} Qg5 {[%emt 0:13:56]} 20. f4 {[%emt 0:09:52]} Qh5 {[%emt 0:00:45]} 21. Rbe1 {[%emt 0:01:51]} a5 {[%emt 0:06:06]} 22. a3 {[%emt 0:03:39]} Bb6 {[%emt 0:05:42]} 23. Qc3 {[%emt 0:02:30]} f6 {[%emt 0:01:47]} 24. Ne6 {[%emt 0:01:32]} Bxe6 {[%emt 0:10:23]} 25. dxe6 {[%emt 0:00:26]} Ne7 {[%emt 0:02:26]} 26. f5 {[%emt 0:10:04]} Rad8 {[%emt 0:04:18]} 27. Rf4 {[%emt 0:02:47]} Rf8 {[%emt 0:03:33]} 28. Bf3 {[%emt 0:03:15]} Qe8 {[%emt 0:00:23]} 29. g4 {[%emt 0:03:03]} c6 {[%emt 0:01:39]} 30. Rfe4 {[%emt 0:01:32]} d5 {[%emt 0:00:44]} 31. cxd5 {[%emt 0:00:59]} cxd5 {[%emt 0:00:13]} 32. R4e2 {[%emt 0:00:37]} Rc8 {[%emt 0:00:43]} 33. Qd3 {[%emt 0:00:59]} Qc6 {[%emt 0:00:28]} 34. Kg2 {[%emt 0:01:23]} (34. Kh1 $16) 34... Qd6 $11 {[%emt 0:00:19]} 35. Kh1 {[%emt 0:02:21]} Qg3 {[%emt 0:01:19]} 36. Rf1 {[%emt 0:01:06] [#]} (36. Be4 $11 Qh4 37. Bg2 (37. Bxd5 $2 {is the wrong capture.} Rfd8 $19)) 36... Qxh3+ {[%emt 0:00:45]} ({Black should try} 36... Bc7 $1 $17 {White must now prevent ...h5.} 37. Bd4 Qxh3+ 38. Kg1 Bd6) 37. Rh2 $11 {[%emt 0:00:07]} Qg3 {[%emt 0:00:02]} 38. Be2 {[%emt 0:03:10]} Bc7 {[%emt 0:01:33]} 39. Qxg3 {[%emt 0:00:22]} Bxg3 {[%emt 0:00:01]} 40. Rg2 $1 {[%emt 0:00:34]} Bd6 {[%emt 0:00:24]} 41. Bf3 {[%emt 0:01:09]} Rfd8 {[%emt 0:00:50]} 42. Rd1 {[%emt 0:01:40]} Bf4 {[%emt 0:01:52]} 43. a4 {[%emt 0:01:34]} Rc6 {[%emt 0:01:01]} 44. Ba3 {[%emt 0:00:59]} Bd6 $1 {[%emt 0:00:04]} 45. Bxd6 {[%emt 0:02:50]} Rdxd6 {[%emt 0:00:05]} 46. Rgd2 {[%emt 0:00:24]} Rc5 {[%emt 0:00:06]} 47. Kg2 {[%emt 0:01:05]} (47. Rd4 $11) 47... g6 {[%emt 0:01:10]} 48. Be4 {[%emt 0:02:04]} h5 {[%emt 0:01:14]} 49. gxh5 {[%emt 0:00:38]} gxf5 {[%emt 0:00:24]} 50. Bf3 {[%emt 0:00:18]} Kh7 {[%emt 0:00:57]} (50... Rxe6 51. Bxd5 Nxd5 52. Rxd5 $11) 51. Rd3 {[%emt 0:00:50]} b5 {[%emt 0:00:38]} 52. Rd4 {[%emt 0:00:49]} (52. axb5 $142 Rxb5 53. Re1) 52... b4 $17 {[%emt 0:00:26]} ({Resist} 52... Rxe6 53. Bxd5 Re2+ 54. Kg3 $15) 53. Kf2 {[%emt 0:01:51]} Kh6 {[%emt 0:00:46]} 54. R1d2 {[%emt 0:00:40]} Rxe6 {[%emt 0:00:44]} 55. Bxd5 {[%emt 0:00:13]} Nxd5 {[%emt 0:00:08]} 56. Rxd5 {[%emt 0:00:06]} Re5 {[%emt 0:00:19]} 57. Rd6 $2 {[%emt 0:02:07]} (57. Rxc5 {was necessary.} Rxc5 58. Kf3) 57... Kxh5 {[%emt 0:00:13]} (57... Rc3 $142 58. Rxf6+ Kxh5) 58. R2d3 $2 {[%emt 0:00:28]} (58. Kf3 {was the crucial defense.}) 58... Kg4 $2 {[%emt 0:01:00]} ({Black should play} 58... Rc2+ $19 59. Rd2 Rxd2+ 60. Rxd2 f4) 59. Rxf6 $2 {[%emt 0:00:10][%mdl 8192]} (59. Rg3+ $1 $11 {and White has nothing to worry.} Kf4 60. Rf3+ Kg4 61. Rg3+ Kh5 (61... Kf4 62. Rf3+ Kg5 63. Rg3+ Kf4 $11) 62. Rg8) 59... Rc2+ $19 {[%emt 0:00:10]} 60. Kf1 {[%emt 0:00:07]} Rc1+ {[%emt 0:00:19]} 61. Kf2 {[%emt 0:00:23]} Rc2+ {[%emt 0:00:05]} 62. Kf1 {[%emt 0:00:05]} Rc1+ {[%emt 0:02:04]} 63. Kf2 {[%emt 0:00:09]} Rce1 $2 {[%emt 0:00:03]} (63... Rcc5 $19 64. Rd4+ Kg5) 64. Rd4+ $2 {[%emt 0:00:59][%mdl 8192]} (64. Rg3+ $1 $11 {and White stays safe.} Kf4 65. Rf3+ Ke4 66. R6xf5 Rxf5 67. Rxf5) 64... Kg5 $19 {[%emt 0:00:12]} 65. Rf8 {[%emt 0:00:22]} R1e2+ {[%emt 0:00:09]} 66. Kf1 {[%emt 0:00:04]} Re1+ $2 {[%emt 0:00:04]} (66... R2e4 67. Rd2 Re1+ 68. Kf2 Rb1) 67. Kf2 $19 {[%emt 0:00:05]} R1e2+ {[%emt 0:00:03]} 68. Kf1 {[%emt 0:00:04] [#]} R2e3 $2 {[%emt 0:00:03]} (68... R2e4 $1 $19 {[%cal Re4d4]} 69. Rd2 Re1+ 70. Kf2 Rb1) 69. Rg8+ $15 {[%emt 0:00:14]} Kf6 {[%emt 0:00:12]} 70. Rd6+ {[%emt 0:00:08]} Ke7 {[%emt 0:00:51]} (70... Re6 $1 $15 71. Rxe6+ Rxe6) 71. Ra6 $11 {[%emt 0:00:07]} Rxb3 {[%emt 0:00:40]} 72. Rg7+ {[%emt 0:00:07]} Kf8 {[%emt 0:03:47]} 73. Rb7 {[%emt 0:01:34]} Rf3+ {[%emt 0:00:00]} 74. Kg2 {[%emt 0:00:08]} Rf4 {[%emt 0:00:00]} 75. Ra8+ {[%emt 0:00:11]} Re8 {[%emt 0:00:00]} 76. Rxa5 {[%emt 0:00:09]} Rc8 {[%emt 0:02:00]} 1/2-1/2

[Event "1000 GM Labor Day Super Swiss 2024"]
[Site "San Jose"]
[Date "2024.09.04"]
[Round "9.13"]
[White "Champsi, Imran"]
[Black "Harish, Neeraj"]
[Result "1/2-1/2"]
[Annotator "NA RC"]
[ECO "B45"]
[WhiteElo "2012"]
[BlackElo "2118"]
[PlyCount "89"]
[EventDate "2024.08.30"]
[EventType "swiss"]
[EventCountry "USA"]
[SourceTitle "playchess.com"]
[Source "ChessBase"]
[SourceQuality "1"]
[TimeControl "5400+30"]

{[%evp 11,60,18,28,22,40,32767,32767,32767,32767,0,0,-14,-6,-28,-24,-19,32767,32767,12,9,32767,32767,12,-28,-14,-31,-19,-17,-21,-32,0,0,0,0,0,0,0,0,-8,0,-4,-8,0,-8,0,-9,0,-14,0,-6,0]} 1. e4 {[%emt 0:01:34]} c5 {[%emt 0:00:22]} 2. Nf3 {[%emt 0:01:14]} Nc6 {[%emt 0:00:10]} 3. d4 {[%emt 0:00:01]} cxd4 {[%emt 0:00:06]} 4. Nxd4 {[%emt 0:00:02]} Nf6 {[%emt 0:00:20]} 5. Nc3 {[%emt 0:00:02]} e6 {[%emt 0:00:52]} 6. Ndb5 {[%emt 0:08:29]} Bc5 {[%emt 0:00:35]} 7. Nd6+ {[%emt 0:01:53] B45: Sicilian Four Knights.} Ke7 {[%emt 0:00:08]} 8. Nxc8+ {[%emt 0:06:47]} Rxc8 {[%emt 0:00:10]} 9. Bd3 {[%emt 0:04:04]} Re8 {[%emt 0:03:24]} 10. O-O {[%emt 0:02:19]} a6 {[%emt 0:02:04]} 11. h3 {[%emt 0:02:39]} Kf8 {[%emt 0:00:17]} 12. a3 {[%emt 0:09:47]} Kg8 {[%emt 0:02:20]} 13. Kh1 {[%emt 0:02:27]} b5 {[%emt 1:26:12]} 14. Bg5 {[%emt 0:05:25]} h6 {[%emt 0:00:00]} 15. Bh4 {[%emt 0:00:40]} Be7 {[%emt 0:00:00]} 16. f4 {[%emt 0:03:10]} d5 {[%emt 0:00:00]} 17. exd5 {[%emt 0:04:37]} (17. Bxf6 {is superior.} Bxf6 18. e5) 17... Nxd5 {[%emt 0:00:00]} 18. Bxe7 {[%emt 0:07:29]} Ncxe7 {[%emt 0:00:00]} 19. Nxd5 {[%emt 0:00:24]} Nxd5 {[%emt 0:00:00]} 20. Qf3 {[%emt 0:01:09]} Qf6 {[%emt 0:00:00]} 21. f5 {[%emt 0:04:23]} Rcd8 {[%emt 0:00:00]} 22. fxe6 {[%emt 0:32:55]} Qxf3 {[%emt 0:00:00]} 23. Rxf3 {[%emt 0:00:00]} Rxe6 {[%emt 0:00:00]} 24. Rd1 {[%emt 0:00:00]} Red6 {[%emt 0:00:00]} 25. Kg1 {[%emt 0:00:00]} Nb6 {[%emt 0:00:00]} 26. b3 {[%emt 0:00:00]} g6 {[%emt 0:00:00]} 27. Rdf1 {[%emt 0:00:00]} R8d7 {[%emt 0:00:00]} 28. Re1 {[%emt 0:00:00]} Kg7 {[%emt 0:00:00]} 29. Re8 {[%emt 0:00:00]} Rc7 {[%emt 0:00:00]} 30. Kf2 {[%emt 0:00:00]} Nd7 $11 {[%emt 0:00:00]} 31. Re7 {[%emt 0:00:00]} Rf6 {[%emt 0:00:00]} 32. c4 {[%emt 0:00:00]} Rxf3+ {[%emt 0:00:00]} 33. gxf3 {[%emt 0:00:00]} Kf6 {[%emt 0:00:00]} 34. Re3 {[%emt 0:00:00]} Ne5 {[%emt 0:00:00]} 35. cxb5 {[%emt 0:00:00]} Nxd3+ {[%emt 0:00:00]} 36. Rxd3 {[%emt 0:00:00]} axb5 {[%emt 0:00:00]} 37. Rd6+ {[%emt 0:00:00]} Ke5 {[%emt 0:00:00]} 38. Rb6 {[%emt 0:00:00]} Rc5 {[%emt 0:00:00]} 39. a4 {[%emt 0:00:00]} bxa4 {[%emt 0:00:00]} 40. bxa4 {[%emt 0:00:00]} Rc2+ {[%emt 0:00:00]} 41. Kg3 {[%emt 0:00:04]} Ra2 {[%emt 0:00:00]} 42. Rb5+ {[%emt 0:01:46]} Kf6 {[%emt 0:00:00]} 43. Ra5 {[%emt 0:01:50]} g5 {[%emt 0:00:00]} 44. Ra6+ {[%emt 0:00:46]} Kf5 {[%emt 0:00:00]} 45. Rxh6 {[%emt 0:01:07]} 1/2-1/2

[Event "1000 GM Labor Day Super Swiss 2024"]
[Site "San Jose"]
[Date "2024.09.04"]
[Round "9.14"]
[White "Ubaldo Suarez, Maria Gisela"]
[Black "Gonzalez Zharikov, Andrey"]
[Result "1/2-1/2"]
[Annotator "TA"]
[ECO "A46"]
[WhiteElo "1958"]
[BlackElo "2070"]
[PlyCount "157"]
[EventDate "2024.08.30"]
[EventType "swiss"]
[EventCountry "USA"]
[SourceTitle "playchess.com"]
[Source "ChessBase"]
[SourceQuality "1"]
[TimeControl "5400+30"]

{[%evp 9,157,2,2,0,15,6,23,4,28,29,90,84,78,100,97,93,95,88,95,54,100,91,93,103,125,103,150,134,226,230,210,20,77,71,81,0,0,0,0,0,-15,-34,-45,-54,-10,-20,-19,-28,0,-70,-47,-24,0,0,0,-52,159,-8,181,-33,-35,-29,0,-66,-68,-93,-44,-42,-32,-108,-89,-97,-100,-164,-178,-163,-141,-131,-84,-95,-77,-87,-36,-185,-158,-144,-156,-161,-87,-203,-210,-240,-227,-394,-343,-277,-245,-245,-204,-193,-37,-37,0,0,0,0,0,0,-4,-60,-60,-120,-60,-60,-45,-151,-60,-104,-50,-78,-50,-181,-112,-155,-104,-111,-111,-112,-50,-50,-50,-50,-50,-50,-50,-50,-50,-50,0,0,0,0,0,0,0,0,0,0,0,0]} 1. d4 {[%emt 0:04:28]} Nf6 {[%emt 0:00:08]} 2. Nf3 {[%emt 0:00:14]} e6 {[%emt 0:00:07]} 3. e3 {[%emt 0:02:15]} c5 {[%emt 0:00:05]} 4. Bd3 {[%emt 0:00:06]} Nc6 {[%emt 0:00:06]} 5. c3 {[%emt 0:00:15]} Be7 {[%emt 0:00:05]} 6. O-O {[%emt 0:00:08]} O-O {[%emt 0:00:04]} 7. e4 {[%emt 0:00:14]} d6 {[%emt 0:01:57]} 8. e5 {[%emt 0:05:44] White has an edge.} dxe5 {[%emt 0:02:23]} 9. dxe5 {[%emt 0:00:03]} Nd5 {[%emt 0:01:59]} (9... Nd7 $1 $11) 10. Qe2 $16 {[%emt 0:02:08]} Rb8 {[%emt 0:02:10]} 11. a4 {[%emt 0:04:46]} b6 {[%emt 0:01:08]} 12. Qe4 {[%emt 0:00:19][%csl Gd3][%cal Re4h7]} g6 {[%emt 0:00:09]} 13. Bh6 {[%emt 0:00:34]} Re8 {[%emt 0:00:04]} 14. Rd1 {[%emt 0:01:21]} Qc7 {[%emt 0:01:31]} (14... Bf8 $14 15. Bxf8 Rxf8) 15. Na3 {[%emt 0:00:49]} a6 {[%emt 0:00:16] Prevents Nb5} 16. Re1 {[%emt 0:09:42]} Rd8 {[%emt 0:07:58]} 17. Rad1 {[%emt 0:01:33]} Rd7 {[%emt 0:02:16]} (17... Bb7 $142) 18. h4 {[%emt 0:01:57][%cal Bh2h4,Bh4h5][%mdl 32] White has more active pieces.} Qd8 {[%emt 0:02:29] [#]} (18... Bb7 $16 {was called for.} 19. Bc2 Nd4 20. cxd4 Nc3) 19. h5 $1 $18 {[%emt 0:02:36][%mdl 512]} Nc7 {[%emt 0:01:01]} 20. Qxc6 {[%emt 0:01:48]} (20. Bc2 $18) 20... Nd5 {[%emt 0:01:36]} (20... Bb7 $11 {keeps the balance.} 21. Qxd7 (21. Qxb6 $2 Bxf3 $19) 21... Qxd7) 21. hxg6 {[%emt 0:00:13]} hxg6 {[%emt 0:00:34] [#]} 22. Bb5 {[%emt 0:12:11]} axb5 $11 {[%emt 0:00:55]} 23. Qxb5 {[%emt 0:00:01]} (23. Nxb5 $2 Bb7 $19) 23... Nxc3 {[%emt 0:01:13]} 24. Rxd7 {[%emt 0:04:29]} Bxd7 {[%emt 0:00:24]} 25. Qd3 {[%emt 0:00:14]} Nd5 {[%emt 0:01:07]} 26. b3 {[%emt 0:00:13]} Nb4 {[%emt 0:01:24]} 27. Qe2 {[%emt 0:03:34]} Bc6 {[%emt 0:01:03]} 28. Nc4 {[%emt 0:42:35]} Nd5 {[%emt 0:02:39]} 29. Nfd2 {[%emt 0:00:00]} (29. Qd2 $11) 29... Kh7 {[%emt 0:01:16]} 30. Be3 {[%emt 0:00:00]} b5 {[%emt 0:01:18]} 31. axb5 {[%emt 0:00:00]} Rxb5 {[%emt 0:00:37]} 32. Qg4 {[%emt 0:00:00]} (32. Qf3 $11 Kg7 33. Nd6 Bxd6 34. exd6) 32... Nc3 $2 {[%emt 0:04:13]} (32... Kg7 $15) 33. Bf4 $2 {[%emt 0:00:00]} ({Only move:} 33. Nd6 $1 $16 {[%cal Rd6f7]} Bxd6 34. exd6) 33... Qd4 $2 {[%emt 0:03:06]} (33... Kg8 $11) 34. Nd6 $2 {[%emt 0:00:00]} (34. Nf3 $1 $18 {[%cal Rf3d4]} Bxf3 35. Qxf3) 34... Rb4 $15 {[%emt 0:01:09]} 35. N6c4 $1 {[%emt 0:00:00]} Nd5 {[%emt 0:02:34]} 36. Qh3+ {[%emt 0:00:00]} (36. Ne4 $1 $11 Rxb3 37. Bg5 Bxg5 (37... Qxc4 $2 {too greedy.} 38. Qh4+ Kg8 39. Bxe7 $18) 38. Rd1) 36... Kg8 {[%emt 0:00:05]} 37. Bh6 {[%emt 0:00:00]} Nf4 {[%emt 0:02:02]} (37... g5 $17 {aiming for ...Nf4.} 38. Qg3 Qf4) 38. Bxf4 {[%emt 0:00:00]} Qxf4 {[%emt 0:00:21]} 39. Qd3 {[%emt 0:00:00]} ({White should try} 39. Ra1 $15) 39... Kg7 $17 {[%emt 0:01:34]} 40. Ne4 {[%emt 0:00:00]} Rb8 {[%emt 0:00:18]} 41. Ned6 {[%emt 0:00:00]} (41. Qf3 $17 Qxf3 42. gxf3) 41... Rh8 $19 {[%emt 0:00:20][%cal Oc6g2]} 42. Qg3 {[%emt 0:00:00]} Qh6 $40 {[%emt 0:01:27][%csl Gh8][%cal Rh6h1][%mdl 128] Black is out for blood.} 43. Kf1 {[%emt 0:00:00]} Ra8 {[%emt 0:01:42]} ({Black should play} 43... Bg5 44. Ke2 Ra8) 44. Qh3 $17 {[%emt 0:00:54]} (44. Kg1 Bh4 45. Qg4 Ra2) 44... Qxh3 {[%emt 0:02:25]} (44... Qf4 {seems wilder.} 45. Qe3 Qh4 46. Qh3 Qxh3 47. gxh3 Bf3) 45. gxh3 {[%emt 0:07:36]} Bg5 {[%emt 0:00:12]} (45... Bd8 $17) 46. Ne3 {[%emt 0:00:00]} (46. Ne4 $1 $15 Bf4 47. Nxc5) 46... Bf3 {[%emt 0:00:58]} 47. Ndc4 {[%emt 0:00:00]} Rh8 {[%emt 0:01:09]} 48. Nd2 {[%emt 0:00:00]} Bc6 {[%emt 0:00:05]} (48... Rxh3 49. Nxf3 Rxf3 50. Ke2) (48... Bb7 $1 $19 49. Ra1 Rxh3) 49. Ke2 {[%emt 0:00:00]} (49. Rc1 $17) 49... Rxh3 $19 {[%emt 0:00:09]} 50. Kd3 {[%emt 0:00:00]} Rh2 {[%emt 0:00:42]} 51. f3 {[%emt 0:00:00]} (51. Kc4) 51... Rh3 {[%emt 0:01:31]} 52. Rf1 {[%emt 0:00:00]} Bb5+ {[%emt 0:00:10] A strong pair of Bishops.} 53. Nec4 {[%emt 0:00:11]} Rh4 {[%emt 0:00:37]} 54. Ne4 {[%emt 0:00:18]} Be7 {[%emt 0:00:33]} (54... Bf4 $19 55. Nxc5 Bxe5) 55. Ra1 $1 $15 {[%emt 0:00:59]} Rh8 {[%emt 0:50:36]} 56. Ra7 {[%emt 0:00:06]} Rd8+ {[%emt 0:00:00]} 57. Kc3 {[%emt 0:00:50]} Rd7 {[%emt 0:00:00]} 58. Rxd7 Bxd7 $11 {[%emt 0:00:00][%mdl 4096] Endgame. KBB-KNN} 59. Ncd6 {[%emt 0:00:55]} (59. Na5 $1 $11) 59... Bc6 $15 {[%emt 0:00:00]} 60. Kc4 {[%emt 0:00:13]} (60. Kd3 $15) 60... Bd5+ {[%emt 0:00:00]} (60... g5 $1 $17 {White must now prevent ...Kg6.} 61. Kd3 Bxe4+ 62. Nxe4 Kg6) 61. Kxc5 {[%emt 0:00:28]} Bxb3 {[%emt 0:00:00]} 62. Kd4 {[%emt 0:00:31] [#]} (62. f4 $15) 62... Bd5 {[%emt 0:00:00]} (62... g5 $1 $17 {...Kg6 would now be deadly.} 63. Ke3 Kg6) 63. Ke3 {[%emt 0:00:22]} Kf8 {[%emt 0:00:00]} (63... g5 $17 64. Nc3 Ba8) 64. Ke2 {[%emt 0:01:08]} Bd8 {[%emt 0:00:00]} 65. Nc5 {[%emt 0:01:02] [#]} (65. f4 $15) 65... Bg5 {[%emt 0:00:00]} (65... g5 $1 $19 66. Nc8 Kg7) 66. Nd3 {[%emt 0:01:00]} Bc6 {[%emt 0:00:00]} ({Better is} 66... Be7 {Hoping for ...Bxd6.} 67. Nc5 Bg5) 67. f4 {[%emt 0:00:27]} Bd8 {[%emt 0:00:00]} 68. Nc5 {[%emt 0:00:35]} Bb6 {[%emt 0:00:00]} (68... g5 $17 69. fxg5 Bxg5) 69. Nce4 {[%emt 0:00:09]} Bxe4 {[%emt 0:00:00]} 70. Nxe4 {[%emt 0:00:03] KB-KN} Bd8 {[%emt 0:00:00]} 71. Kf3 {[%emt 0:00:07]} Be7 {[%emt 0:00:00]} 72. Kg4 {[%emt 0:00:41]} Kg7 {[%emt 0:00:00]} 73. Ng5 {[%emt 0:00:57]} Bxg5 {[%emt 0:00:00]} (73... Kg8 $15) 74. fxg5 {[%emt 0:01:48] K3P-KPP. The position is equal.} Kf8 {[%emt 0:00:00]} 75. Kf4 {[%emt 0:00:01]} Ke7 {[%emt 0:00:00]} 76. Ke4 {[%emt 0:00:01]} Kd7 {[%emt 0:00:00] ( -> ...Kc6)} 77. Kd4 {[%emt 0:00:03]} Kd8 {[%emt 0:00:00]} (77... Kc6 $5 78. Kc4 $8 Kb6 $11) 78. Kc5 {[%emt 0:00:40]} Kc7 {[%emt 0:00:00]} 79. Kb5 $1 {[%emt 0:00:09] Both players deserved the win here.   Weighted Error Value: White=0.34/Black=0.35.  Loses game:     	---       	Black=1      Missed win:     	White=2     	---        Mistake:       	White=14    	Black=18     Inaccurate:     	White=4     	Black=5      OK:         	White=17    	Black=15     Best:        	White=8     	Black=2      Strong:       	White=3     	---        Brilliant:      	White=1     	---} 1/2-1/2